fUSD/lending_fUSD_20250602
["ID","MTS","AMOUNT","RATE_DAILY","PERIOD"]
[363773202,1748867445605,-420.0,0.00019178,2]
[363773204,1748867445614,-5018.915844,0.00019178,2]
[363773206,1748867445622,-1315.03,0.00019178,2]
[363773208,1748867445631,-420.0,0.00019178,2]
[363773210,1748867445640,-420.0,0.00019178,2]
[363773212,1748867445649,-420.0,0.00019178,2]
[363773214,1748867445658,-420.0,0.00019178,2]
[363773216,1748867445667,-420.0,0.00019178,2]
[363773218,1748867445677,-422.32586532,0.00019178,2]
[363773220,1748867445686,-423.35779096,0.00019178,2]
[363773222,1748867445695,-472.96,0.00019178,2]
[363773224,1748867445704,-503.22415732,0.00019178,2]
[363773226,1748867445712,-420.0,0.00019178,2]
[363773228,1748867445721,-420.0,0.00019178,2]
[363773230,1748867445730,-420.0,0.00019178,2]
[363773232,1748867445739,-462.31,0.00019178,2]
[363773234,1748867445748,-420.0,0.00019178,2]
[363773236,1748867445759,-420.0,0.00019178,2]
[363773238,1748867445768,-1271.04,0.00019178,2]
[363773240,1748867445777,-420.0,0.00019178,2]
[363773242,1748867445786,-422.21285186,0.00019178,2]
[363773244,1748867445795,-648.74,0.00019178,2]
[363773246,1748867445805,-420.0,0.00019178,2]
[363773248,1748867445814,-420.0,0.00019178,2]
[363773250,1748867445823,-430.17758935,0.00019178,2]
[363773252,1748867445832,-420.0,0.00019178,2]
[363773254,1748867445842,-420.0,0.00019178,2]
[363773256,1748867445851,-420.0,0.00019178,2]
[363773258,1748867445860,-420.0,0.00019178,2]
[363773259,1748867445869,-420.0,0.00019178,2]
[363773261,1748867445879,-424.47360794,0.00019178,2]
[363773263,1748867445887,-420.0,0.00019178,2]
[363773265,1748867445895,-420.0,0.00019178,2]
[363773267,1748867445902,-692.54,0.00019178,2]
[363773269,1748867445911,-561.62831673,0.00019178,2]
[363773271,1748867445920,-3069.14,0.00019178,2]
[363773273,1748867445930,-420.55806421,0.00019178,2]
[363773275,1748867445939,-685.63,0.00019178,2]
[363773277,1748867445949,-420.0,0.00019178,2]
[363773279,1748867445959,-345.27630197,0.00019178,2]
[363773281,1748867445968,-420.0,0.00019178,2]
[363773283,1748867445978,-420.0,0.00019178,2]
[363773285,1748867445988,-420.0,0.00019178,2]
[363773287,1748867445998,-420.0,0.00019178,2]
[363773289,1748867446008,-420.0,0.00019178,2]
[363773291,1748867446018,-420.0,0.00019178,2]
[363773293,1748867446028,-1840.13,0.00019178,2]
[363773295,1748867446039,-612.55,0.00019178,2]
[363773297,1748867446049,-420.92982298,0.00019178,2]
[363773299,1748867446059,-990.37,0.00019178,2]
[363773301,1748867446069,-420.0,0.00019178,2]
[363773303,1748867446080,-428.10091862,0.00019178,2]
[363773305,1748867446096,-487.61960424,0.00019178,2]
[363773307,1748867446107,-420.0,0.00019178,2]
[363773309,1748867446118,-467.8,0.00019178,2]
[363773311,1748867446128,-420.0,0.00019178,2]
[363773313,1748867446138,-420.0,0.00019178,2]
[363773315,1748867446147,-440.40581839,0.00019178,2]
[363773318,1748867446157,-420.0,0.00019178,2]
[363773320,1748867446167,-420.0,0.00019178,2]
[363773322,1748867446176,-420.0,0.00019178,2]
[363773324,1748867446186,-420.0,0.00019178,2]
[363773326,1748867446196,-420.0,0.00019178,2]
[363773328,1748867446206,-420.0,0.00019178,2]
[363773331,1748867446215,-1256.31,0.00019178,2]
[363773333,1748867446225,-426.38652858,0.00019178,2]
[363773335,1748867446235,-420.0,0.00019178,2]
[363773354,1748867446429,-420.0,0.00019178,2]
[363773357,1748867446439,-420.0,0.00019178,2]
[363773358,1748867446450,-426.4667871,0.00019178,2]
[363773361,1748867446460,-420.0,0.00019178,2]
[363773363,1748867446470,-420.0,0.00019178,2]
[363773365,1748867446481,-420.0,0.00019178,2]
[363773366,1748867446491,-565.39,0.00019178,2]
[363773368,1748867446501,-420.0,0.00019178,2]
[363773370,1748867446511,-420.0,0.00019178,2]
[363773372,1748867446521,-420.0,0.00019178,2]
[363773374,1748867446530,-360.91716092,0.00019178,2]
[363773376,1748867446540,-420.0,0.00019178,2]
[363773378,1748867446550,-743.93,0.00019178,2]
[363773380,1748867446560,-440.91562554,0.00019178,2]
[363773383,1748867446570,-420.0,0.00019178,2]
[363773385,1748867446580,-420.0,0.00019178,2]
[363773386,1748867446592,-1533.64,0.00019178,2]
[363773388,1748867446602,-420.0,0.00019178,2]
[363773390,1748867446611,-444.82363794,0.00019178,2]
[363773392,1748867446621,-723.86,0.00019178,2]
[363773395,1748867446632,-425.82447782,0.00019178,2]
[363773396,1748867446642,-1076.54,0.00019178,2]
[363773398,1748867446651,-420.0,0.00019178,2]
[363773400,1748867446661,-420.0,0.00019178,2]
[363773403,1748867446671,-420.0,0.00019178,2]
[363773404,1748867446680,-151.0,0.00019178,2]
[363773406,1748867446690,-169.47,0.00019178,2]
[363773408,1748867446700,-218.12399793,0.00019215,2]
[363773410,1748867446709,-3758.50160772,0.00019261,2]
[363773412,1748867446719,-2122.4532337,0.00019261,2]
[363773414,1748867446729,-804.5737531,0.00019282,2]
[363773416,1748867446738,-500.0,0.00019314,2]
[363773418,1748867446748,-500.0,0.00019314,2]
[363773420,1748867446757,-500.0,0.00019314,2]
[363773422,1748867446766,-500.0,0.00019314,2]
[363773424,1748867446776,-425.62261003,0.00019315,2]
[363773426,1748867446786,-549.77917205,0.00019315,2]
[363773428,1748867446795,-420.0,0.00019315,2]
[363773430,1748867446805,-281.4640777,0.00019315,2]
[363773432,1748867446816,-427.68779438,0.00019315,2]
[363773434,1748867446825,-420.0,0.00019315,2]
[363773436,1748867446835,-420.0,0.00019315,2]
[363773438,1748867446845,-431.48675265,0.00019315,2]
[363773440,1748867446855,-420.0,0.00019315,2]
[363773442,1748867446865,-1995.139131,0.00019315,2]
[363773444,1748867446875,-420.0,0.00019315,2]
[363773446,1748867446885,-484.59695893,0.00019315,2]
[363773448,1748867446895,-420.0,0.00019315,2]
[363773450,1748867446905,-420.0,0.00019315,2]
[363773452,1748867446914,-420.0,0.00019315,2]
[363773454,1748867446923,-2505.226592,0.00019315,2]
[363773456,1748867446933,-420.0,0.00019315,2]
[363773458,1748867446943,-495.33,0.00019315,2]
[363773460,1748867446953,-420.0,0.00019315,2]
[363773462,1748867446963,-420.0,0.00019315,2]
[363773464,1748867446972,-420.0,0.00019315,2]
[363773465,1748867446981,-420.0,0.00019315,2]
[363773468,1748867446991,-420.0,0.00019315,2]
[363773469,1748867447004,-420.0,0.00019315,2]
[363773471,1748867447014,-420.0,0.00019315,2]
[363773474,1748867447024,-506.36,0.00019315,2]
[363773475,1748867447033,-420.0,0.00019315,2]
[363773478,1748867447043,-420.0,0.00019315,2]
[363773479,1748867447053,-420.0,0.00019315,2]
[363773481,1748867447062,-567.07153947,0.00019315,2]
[363773483,1748867447071,-303.67526051,0.00019315,2]
[363773485,1748867447081,-420.0,0.00019315,2]
[363773487,1748867447092,-420.0,0.00019315,2]
[363773489,1748867447103,-378.81684816,0.00019315,2]
[363773491,1748867447112,-420.0,0.00019315,2]
[363773493,1748867447121,-420.0,0.00019315,2]
[363773495,1748867447130,-420.0,0.00019315,2]
[363773497,1748867447139,-547.67,0.00019315,2]
[363773499,1748867447148,-420.0,0.00019315,2]
[363773501,1748867447158,-420.0,0.00019315,2]
[363773503,1748867447167,-420.0,0.00019315,2]
[363773505,1748867447177,-420.0,0.00019315,2]
[363773507,1748867447186,-420.0,0.00019315,2]
[363773509,1748867447196,-420.0,0.00019315,2]
[363773511,1748867447205,-420.0,0.00019315,2]
[363773513,1748867447215,-420.0,0.00019315,2]
[363773515,1748867447224,-420.0,0.00019315,2]
[363773517,1748867447234,-420.0,0.00019315,2]
[363773519,1748867447243,-420.0,0.00019315,2]
[363773521,1748867447252,-467.73886006,0.00019315,2]
[363773523,1748867447261,-420.0,0.00019315,2]
[363773525,1748867447271,-420.0,0.00019315,2]
[363773527,1748867447280,-420.0,0.00019315,2]
[363773529,1748867447292,-420.0,0.00019315,2]
[363773531,1748867447301,-426.22837102,0.00019315,2]
[363773533,1748867447310,-420.0,0.00019315,2]
[363773535,1748867447320,-420.0,0.00019315,2]
[363773537,1748867447329,-435.2586021,0.00019315,2]
[363773539,1748867447339,-420.0,0.00019315,2]
[363773541,1748867447348,-446.39137729,0.00019315,2]
[363773543,1748867447357,-420.0,0.00019315,2]
[363773545,1748867447368,-420.0,0.00019315,2]
[363773547,1748867447378,-432.15980761,0.00019315,2]
[363773549,1748867447387,-468.61953136,0.00019315,2]
[363773551,1748867447397,-420.0,0.00019315,2]
[363773553,1748867447406,-420.0,0.00019315,2]
[363773555,1748867447415,-420.0,0.00019315,2]
[363773557,1748867447424,-420.0,0.00019315,2]
[363773559,1748867447436,-285.91726086,0.00019315,2]
[363773561,1748867447446,-420.0,0.00019315,2]
[363773562,1748867447455,-522.06488284,0.00019315,2]
[363773564,1748867447464,-420.0,0.00019315,2]
[363773566,1748867447475,-420.0,0.00019315,2]
[363773568,1748867447485,-420.0,0.00019315,2]
[363773571,1748867447494,-420.0,0.00019315,2]
[363773572,1748867447505,-420.0,0.00019315,2]
[363773574,1748867447514,-420.0,0.00019315,2]
[363773576,1748867447524,-420.0,0.00019315,2]
[363773577,1748867447534,-420.0,0.00019315,2]
[363773578,1748867447544,-447.4866245,0.00019315,2]
[363773579,1748867447553,-420.0,0.00019315,2]
[363773580,1748867447562,-420.0,0.00019315,2]
[363773581,1748867447572,-420.0,0.00019315,2]
[363773582,1748867447582,-429.87747753,0.00019315,2]
[363773583,1748867447592,-523.06068151,0.00019315,2]
[363773584,1748867447601,-420.0,0.00019315,2]
[363773585,1748867447611,-420.0,0.00019315,2]
[363773587,1748867447621,-420.0,0.00019315,2]
[363773589,1748867447630,-420.0,0.00019315,2]
[363773591,1748867447640,-492.33154948,0.00019315,2]
[363773593,1748867447651,-420.0,0.00019315,2]
[363773595,1748867447662,-420.0,0.00019315,2]
[363773597,1748867447673,-420.0,0.00019315,2]
[363773599,1748867447684,-437.55895503,0.00019315,2]
[363773601,1748867447694,-420.0,0.00019315,2]
[363773603,1748867447704,-480.25,0.00019315,2]
[363773605,1748867447714,-420.0,0.00019315,2]
[363773607,1748867447725,-162.74171062,0.00019315,2]
[363773609,1748867447734,-420.0,0.00019315,2]
[363773611,1748867447743,-420.0,0.00019315,2]
[363773613,1748867447752,-420.0,0.00019315,2]
[363773614,1748867447762,-420.0,0.00019315,2]
[363773616,1748867447772,-419.62449745,0.00019315,2]
[363773619,1748867447782,-420.0,0.00019315,2]
[363773621,1748867447792,-420.0,0.00019315,2]
[363773622,1748867447801,-420.0,0.00019315,2]
[363773624,1748867447810,-227.35996627,0.00019315,2]
[363773626,1748867447820,-420.0,0.00019315,2]
[363773629,1748867447829,-420.0,0.00019315,2]
[363773630,1748867447839,-180.2179445,0.00019315,2]
[363773632,1748867447848,-420.0,0.00019315,2]
[363773634,1748867447858,-420.0,0.00019315,2]
[363773636,1748867447868,-420.0,0.00019315,2]
[363773638,1748867447877,-420.0,0.00019315,2]
[363773640,1748867447887,-420.0,0.00019315,2]
[363773642,1748867447896,-420.0,0.00019315,2]
[363773644,1748867447907,-420.0,0.00019315,2]
[363773646,1748867447916,-420.0,0.00019315,2]
[363773648,1748867447926,-420.0,0.00019315,2]
[363773650,1748867447936,-420.0,0.00019315,2]
[363773652,1748867447945,-420.0,0.00019315,2]
[363773654,1748867447955,-420.0,0.00019315,2]
[363773656,1748867447964,-420.0,0.00019315,2]
[363773658,1748867447974,-431.45660905,0.00019315,2]
[363773660,1748867447983,-420.0,0.00019315,2]
[363773662,1748867447993,-420.0,0.00019315,2]
[363773664,1748867448002,-420.0,0.00019315,2]
[363773666,1748867448012,-540.01948633,0.00019315,2]
[363773668,1748867448022,-420.0,0.00019315,2]
[363773670,1748867448032,-420.0,0.00019315,2]
[363773672,1748867448042,-420.0,0.00019315,2]
[363773674,1748867448052,-420.0,0.00019315,2]
[363773676,1748867448061,-420.0,0.00019315,2]
[363773678,1748867448071,-420.0,0.00019315,2]
[363773680,1748867448080,-420.0,0.00019315,2]
[363773682,1748867448089,-420.0,0.00019315,2]
[363773684,1748867448099,-420.0,0.00019315,2]
[363773686,1748867448109,-429.53909243,0.00019315,2]
[363773688,1748867448118,-420.0,0.00019315,2]
[363773690,1748867448128,-559.66,0.00019315,2]
[363773692,1748867448137,-420.0,0.00019315,2]
[363773694,1748867448146,-420.0,0.00019315,2]
[363773696,1748867448155,-420.0,0.00019315,2]
[363773698,1748867448164,-420.0,0.00019315,2]
[363773700,1748867448174,-420.0,0.00019315,2]
[363773702,1748867448183,-427.13323271,0.00019315,2]
[363773704,1748867448192,-420.0,0.00019315,2]
[363773706,1748867448202,-427.63185488,0.00019315,2]
[363773708,1748867448212,-420.0,0.00019315,2]
[363773710,1748867448222,-420.0,0.00019315,2]
[363773712,1748867448231,-420.0,0.00019315,2]
[363773714,1748867448241,-420.0,0.00019315,2]
[363773716,1748867448251,-463.81128577,0.00019315,2]
[363773718,1748867448260,-420.0,0.00019315,2]
[363773720,1748867448270,-420.0,0.00019315,2]
[363773722,1748867448279,-429.3046643,0.00019315,2]
[363773724,1748867448288,-420.0,0.00019315,2]
[363773726,1748867448297,-420.0,0.00019315,2]
[363773728,1748867448307,-420.0,0.00019315,2]
[363773730,1748867448316,-420.0,0.00019315,2]
[363773732,1748867448325,-420.0,0.00019315,2]
[363773734,1748867448335,-420.0,0.00019315,2]
[363773736,1748867448344,-434.85329334,0.00019315,2]
[363773738,1748867448354,-426.09158993,0.00019315,2]
[363773740,1748867448362,-420.0,0.00019315,2]
[363773741,1748867448372,-420.0,0.00019315,2]
[363773743,1748867448382,-420.0,0.00019315,2]
[363773745,1748867448392,-420.0,0.00019315,2]
[363773747,1748867448401,-435.62980148,0.00019315,2]
[363773749,1748867448410,-462.42,0.00019315,2]
[363773752,1748867448420,-958.67,0.00019315,2]
[363773754,1748867448430,-420.0,0.00019315,2]
[363773756,1748867448444,-420.0,0.00019315,2]
[363773758,1748867448454,-420.0,0.00019315,2]
[363773759,1748867448464,-2750.23,0.00019315,2]
[363773761,1748867448475,-484.6,0.00019315,2]
[363773764,1748867448485,-420.0,0.00019315,2]
[363773766,1748867448494,-420.0,0.00019315,2]
[363773768,1748867448503,-1165.66,0.00019315,2]
[363773769,1748867448514,-420.0,0.00019315,2]
[363773771,1748867448523,-420.0,0.00019315,2]
[363773773,1748867448533,-420.0,0.00019315,2]
[363773775,1748867448543,-168.80805671,0.00019315,2]
[363773777,1748867448552,-470.09,0.00019315,2]
[363773779,1748867448562,-420.0,0.00019315,2]
[363773781,1748867448571,-420.0,0.00019315,2]
[363773783,1748867448581,-1087.76656681,0.00019315,2]
[363773785,1748867448591,-538.21,0.00019315,2]
[363773787,1748867448602,-420.0,0.00019315,2]
[363773789,1748867448611,-420.0,0.00019315,2]
[363773791,1748867448621,-420.0,0.00019315,2]
[363773793,1748867448630,-329.62,0.00019315,2]
[363773795,1748867448639,-186.67776373,0.00019315,2]
[363773798,1748867448649,-420.0,0.00019315,2]
[363773800,1748867448659,-420.0,0.00019315,2]
[363773802,1748867448669,-420.0,0.00019315,2]
[363773803,1748867448679,-422.60262412,0.00019315,2]
[363773805,1748867448688,-430.27389794,0.00019315,2]
[363773807,1748867448697,-420.0,0.00019315,2]
[363773809,1748867448707,-420.0,0.00019315,2]
[363773811,1748867448716,-420.0,0.00019315,2]
[363773813,1748867448726,-420.0,0.00019315,2]
[363773815,1748867448735,-430.09611802,0.00019315,2]
[363773817,1748867448744,-14935.26,0.00019315,2]
[363773819,1748867448754,-420.0,0.00019315,2]
[363773821,1748867448763,-420.0,0.00019315,2]
[363773823,1748867448772,-420.0,0.00019315,2]
[363773825,1748867448782,-437.32,0.00019315,2]
[363773827,1748867448791,-465.30088934,0.00019315,2]
[363773829,1748867448800,-183.02,0.00019315,2]
[363773831,1748867448810,-420.0,0.00019315,2]
[363773833,1748867448819,-420.0,0.00019315,2]
[363773835,1748867448829,-1157.04,0.00019315,2]
[363773838,1748867448840,-420.0,0.00019315,2]
[363773840,1748867448850,-420.0,0.00019315,2]
[363773842,1748867448859,-563.6,0.00019315,2]
[363773843,1748867448869,-437.97263717,0.00019315,2]
[363773846,1748867448880,-420.0,0.00019315,2]
[363773847,1748867448889,-420.0,0.00019315,2]
[363773849,1748867448899,-420.0,0.00019315,2]
[363773851,1748867448909,-420.0,0.00019315,2]
[363773854,1748867448920,-420.0,0.00019315,2]
[363773856,1748867448930,-432.68463089,0.00019315,2]
[363773857,1748867448940,-493.43,0.00019315,2]
[363773859,1748867448950,-681.0,0.00019315,2]
[363773861,1748867448960,-420.0,0.00019315,2]
[363773863,1748867448970,-420.0,0.00019315,2]
[363773865,1748867448980,-420.0,0.00019315,2]
[363773867,1748867448990,-1130.25,0.00019315,2]
[363773869,1748867449001,-685.03,0.00019315,2]
[363773871,1748867449011,-420.0,0.00019315,2]
[363773873,1748867449021,-420.0,0.00019315,2]
[363773875,1748867449031,-420.0,0.00019315,2]
[363773877,1748867449041,-521.31,0.00019315,2]
[363773879,1748867449052,-420.0,0.00019315,2]
[363773881,1748867449062,-420.0,0.00019315,2]
[363773883,1748867449072,-420.0,0.00019315,2]
[363773885,1748867449082,-420.0,0.00019315,2]
[363773887,1748867449093,-420.0,0.00019315,2]
[363773889,1748867449104,-1489.08,0.00019315,2]
[363773891,1748867449115,-420.0,0.00019315,2]
[363773893,1748867449125,-1042.11,0.00019315,2]
[363773895,1748867449135,-420.0,0.00019315,2]
[363773897,1748867449145,-420.0,0.00019315,2]
[363773899,1748867449155,-420.0,0.00019315,2]
[363773901,1748867449165,-1690.99,0.00019315,2]
[363773903,1748867449174,-420.0,0.00019315,2]
[363773905,1748867449184,-420.0,0.00019315,2]
[363773908,1748867449194,-420.0,0.00019315,2]
[363773910,1748867449204,-353.95899273,0.00019315,2]
[363773912,1748867449214,-421.09712156,0.00019315,2]
[363773914,1748867449223,-420.0,0.00019315,2]
[363773916,1748867449234,-420.0,0.00019315,2]
[363773918,1748867449244,-550.3,0.00019315,2]
[363773920,1748867449254,-905.78,0.00019315,2]
[363773922,1748867449264,-420.0,0.00019315,2]
[363773924,1748867449274,-420.0,0.00019315,2]
[363773926,1748867449283,-420.0,0.00019315,2]
[363773927,1748867449293,-4202.04,0.00019315,2]
[363773930,1748867449303,-726.96,0.00019315,2]
[363773931,1748867449313,-420.0,0.00019315,2]
[363773933,1748867449323,-420.0,0.00019315,2]
[363773936,1748867449334,-420.0,0.00019315,2]
[363773937,1748867449345,-420.0,0.00019315,2]
[363773940,1748867449355,-161.09681059,0.00019315,2]
[363773942,1748867449367,-800.6,0.00019315,2]
[363773943,1748867449377,-420.0,0.00019315,2]
[363773945,1748867449387,-348.31989736,0.00019315,2]
[363773948,1748867449398,-420.0,0.00019315,2]
[363773950,1748867449408,-420.0,0.00019315,2]
[363773952,1748867449418,-978.64,0.00019315,2]
[363773954,1748867449428,-420.0,0.00019315,2]
[363773955,1748867449442,-420.0,0.00019315,2]
[363773958,1748867449451,-420.0,0.00019315,2]
[363773960,1748867449461,-420.0,0.00019315,2]
[363773961,1748867449471,-1690.87,0.00019315,2]
[363773964,1748867449481,-420.0,0.00019315,2]
[363773965,1748867449491,-420.0,0.00019315,2]
[363773967,1748867449500,-420.0,0.00019315,2]
[363773969,1748867449511,-420.0,0.00019315,2]
[363773971,1748867449520,-420.0,0.00019315,2]
[363773973,1748867449530,-420.0,0.00019315,2]
[363773974,1748867449540,-420.0,0.00019315,2]
[363773975,1748867449550,-420.0,0.00019315,2]
[363773976,1748867449559,-420.0,0.00019315,2]
[363773977,1748867449568,-420.0,0.00019315,2]
[363773978,1748867449577,-420.0,0.00019315,2]
[363773979,1748867449587,-420.0,0.00019315,2]
[363773980,1748867449597,-4165.15,0.00019315,2]
[363773981,1748867449607,-420.0,0.00019315,2]
[363773982,1748867449617,-420.0,0.00019315,2]
[363773984,1748867449626,-420.0,0.00019315,2]
[363773986,1748867449636,-468.04,0.00019315,2]
[363773988,1748867449645,-420.66954026,0.00019315,2]
[363773990,1748867449655,-420.0,0.00019315,2]
[363773992,1748867449664,-420.0,0.00019315,2]
[363773994,1748867449674,-420.0,0.00019315,2]
[363774012,1748867449842,-420.0,0.00019315,2]
[363774014,1748867449851,-542.46,0.00019315,2]
[363774016,1748867449861,-420.0,0.00019315,2]
[363774018,1748867449871,-480.02336895,0.00019315,2]
[363774019,1748867449880,-420.0,0.00019315,2]
[363774021,1748867449888,-420.0,0.00019315,2]
[363774023,1748867449897,-428.80755276,0.00019315,2]
[363774025,1748867449905,-420.0,0.00019315,2]
[363774027,1748867449913,-420.0,0.00019315,2]
[363774029,1748867449922,-420.0,0.00019315,2]
[363774031,1748867449931,-669.01,0.00019315,2]
[363774033,1748867449939,-420.0,0.00019315,2]
[363774036,1748867449948,-361.56,0.00019315,2]
[363774038,1748867449957,-420.0,0.00019315,2]
[363774040,1748867449965,-420.0,0.00019315,2]
[363774042,1748867449974,-420.0,0.00019315,2]
[363774044,1748867449982,-420.0,0.00019315,2]
[363774046,1748867449990,-667.42,0.00019315,2]
[363774048,1748867449998,-420.0,0.00019315,2]
[363774050,1748867450007,-526.51925465,0.00019315,2]
[363774052,1748867450016,-420.0,0.00019315,2]
[363774054,1748867450026,-420.0,0.00019315,2]
[363774056,1748867450034,-1352.08,0.00019315,2]
[363774058,1748867450042,-420.0,0.00019315,2]
[363774060,1748867450050,-842.73,0.00019315,2]
[363774062,1748867450058,-420.0,0.00019315,2]
[363774064,1748867450067,-1858.25,0.00019315,2]
[363774066,1748867450076,-420.0,0.00019315,2]
[363774068,1748867450085,-420.0,0.00019315,2]
[363774070,1748867450094,-554.07,0.00019315,2]
[363774072,1748867450102,-422.34216606,0.00019315,2]
[363774074,1748867450111,-420.0,0.00019315,2]
[363774076,1748867450120,-420.0,0.00019315,2]
[363774078,1748867450129,-420.0,0.00019315,2]
[363774080,1748867450137,-420.0,0.00019315,2]
[363774082,1748867450145,-426.56780588,0.00019315,2]
[363774084,1748867450153,-420.0,0.00019315,2]
[363774086,1748867450161,-820.8,0.00019315,2]
[363774088,1748867450169,-550.36,0.00019315,2]
[363774090,1748867450177,-420.0,0.00019315,2]
[363774092,1748867450186,-2393.79,0.00019315,2]
[363774094,1748867450194,-420.0,0.00019315,2]
[363774097,1748867450203,-420.0,0.00019315,2]
[363774099,1748867450212,-864.26,0.00019315,2]
[363774101,1748867450221,-473.51,0.00019315,2]
[363774102,1748867450228,-3160.13,0.00019315,2]
[363774104,1748867450237,-420.0,0.00019315,2]
[363774106,1748867450246,-420.0,0.00019315,2]
[363774108,1748867450256,-1767.75,0.00019315,2]
[363774110,1748867450265,-420.0,0.00019315,2]
[363774112,1748867450274,-432.74911813,0.00019315,2]
[363774114,1748867450284,-420.0,0.00019315,2]
[363774116,1748867450294,-2585.55,0.00019315,2]
[363774118,1748867450303,-420.0,0.00019315,2]
[363774120,1748867450312,-1243.7,0.00019315,2]
[363774122,1748867450321,-421.1,0.00019315,2]
[363774124,1748867450331,-420.0,0.00019315,2]
[363774126,1748867450340,-420.0,0.00019315,2]
[363774128,1748867450350,-420.0,0.00019315,2]
[363774130,1748867450359,-2534.59,0.00019315,2]
[363774132,1748867450369,-420.0,0.00019315,2]
[363774134,1748867450379,-423.39750693,0.00019315,2]
[363774136,1748867450388,-420.0,0.00019315,2]
[363774138,1748867450399,-420.0,0.00019315,2]
[363774140,1748867450409,-420.0,0.00019315,2]
[363774142,1748867450418,-420.0,0.00019315,2]
[363774144,1748867450428,-420.0,0.00019315,2]
[363774147,1748867450441,-880.65,0.00019315,2]
[363774149,1748867450451,-420.0,0.00019315,2]
[363774150,1748867450460,-420.0,0.00019315,2]
[363774152,1748867450470,-420.0,0.00019315,2]
[363774154,1748867450479,-1315.03,0.00019315,2]
[363774156,1748867450489,-420.0,0.00019315,2]
[363774158,1748867450500,-420.0,0.00019315,2]
[363774160,1748867450511,-420.0,0.00019315,2]
[363774162,1748867450521,-420.0,0.00019315,2]
[363774164,1748867450531,-420.0,0.00019315,2]
[363774166,1748867450540,-472.96,0.00019315,2]
[363774168,1748867450550,-420.0,0.00019315,2]
[363774170,1748867450559,-420.0,0.00019315,2]
[363774172,1748867450568,-420.0,0.00019315,2]
[363774174,1748867450577,-462.31,0.00019315,2]
[363774176,1748867450587,-420.0,0.00019315,2]
[363774178,1748867450597,-550.86,0.00019315,2]
[363774180,1748867450606,-1271.04,0.00019315,2]
[363774182,1748867450616,-648.74,0.00019315,2]
[363774184,1748867450626,-420.0,0.00019315,2]
[363774186,1748867450635,-420.0,0.00019315,2]
[363774188,1748867450644,-420.0,0.00019315,2]
[363774190,1748867450654,-420.0,0.00019315,2]
[363774192,1748867450663,-420.0,0.00019315,2]
[363774194,1748867450672,-420.0,0.00019315,2]
[363774196,1748867450682,-420.0,0.00019315,2]
[363774198,1748867450691,-692.54,0.00019315,2]
[363774200,1748867450701,-3069.14,0.00019315,2]
[363774202,1748867450711,-685.63,0.00019315,2]
[363774204,1748867450720,-420.0,0.00019315,2]
[363774206,1748867450730,-258.19750397,0.00019315,2]
[363774208,1748867450740,-432.98351388,0.00019315,2]
[363774210,1748867450749,-1840.13,0.00019315,2]
[363774212,1748867450758,-612.55,0.00019315,2]